bitfinex-derivatives/quotes_ETHF0:USTF0_20240928
["timestamp","ask_amount","ask_price","bid_price","bid_amount"]
[1727494985037,2.00676118,2690.6,2690.5,5.40628624]
[1727494986044,2.37833118,2690.6,2690.5,5.40628624]
[1727494986445,2.00676118,2690.6,2690.5,5.77786624]
[1727494986848,2.00676118,2690.6,2690.5,9.49466624]
[1727494987037,2.91301733,2690.9,2690.6,0.37157]
[1727494987038,3.28398485,2690.7,2690.6,0.37157]
[1727494987237,3.28398485,2690.7,2690.5,5.40628624]
[1727494987445,3.28398485,2690.7,2690.6,0.37157]
[1727494987744,3.28398485,2690.7,2690.5,5.77785624]
[1727494988046,1.94400247,2690.6,2690.5,5.77785624]
[1727494989042,3.28400247,2690.7,2690.6,0.37157]
[1727494989837,1.34,2690.7,2690.6,0.37157]
[1727494990041,3.28380194,2690.7,2690.6,0.37157]
[1727494990243,1.34,2690.7,2690.6,0.37157]
[1727494990456,1.34,2690.7,2690.5,5.77785624]
[1727494990750,1.4579635,2690.6,2690.5,5.77786624]
[1727494991052,1.34,2690.6,2690.5,5.77786624]
[1727494991253,2.7979635,2690.6,2690.5,5.77786624]
[1727494992160,6.5147635,2690.6,2690.5,3.98228624]
[1727494992345,6.0945772,2690.6,2690.5,5.01228624]
[1727494992542,7.4345772,2690.6,2690.5,5.01228624]
[1727494993147,7.4345772,2690.6,2690.5,3.98228624]
[1727494993750,7.42299118,2690.6,2690.5,3.98228624]
[1727494994054,10.0390138,2690.6,2690.5,3.98228624]
[1727494994749,3.84136437,2690.6,2690.5,3.98228624]
[1727494994951,0.37159,2690.5,2690.3,1.099]
[1727494995148,6.49141019,2690.4,2690.3,1.099]
[1727494995345,6.67732657,2690.4,2690.3,1.47061]
[1727494995547,4.73371638,2690.4,2690.3,1.099]
[1727494995754,6.67732657,2690.4,2690.3,1.099]
[1727494995947,7.04891657,2690.4,2690.3,1.099]
[1727494996148,6.67732657,2690.4,2690.3,1.099]
[1727494996454,7.04891657,2690.4,2690.3,1.099]
[1727494997057,6.67732657,2690.4,2690.3,1.099]
[1727494998052,4.73371638,2690.4,2690.3,1.099]
[1727494998255,7.04891657,2690.4,2690.3,1.099]
[1727494998455,9.75109638,2690.4,2690.3,0.069]
[1727494998761,16.44428886,2690.4,2690.0,1.4027]
[1727494998946,1.94336387,2690.1,2690.0,1.77435]
[1727494999154,4.5478,2690.1,2690.0,1.77435]
[1727494999351,6.0051871,2690.1,2690.0,1.77435]
[1727494999754,6.19112943,2690.1,2690.0,1.77435]
[1727495000155,6.0051871,2690.1,2690.0,1.77435]
[1727495000357,4.5478,2690.1,2690.0,1.77435]
[1727495000554,0.97131878,2690.1,2690.0,1.77435]
[1727495001159,4.17911878,2690.1,2690.0,1.77435]
[1727495002557,3.2078,2690.1,2690.0,5.49195]
[1727495003664,0.97131878,2690.3,2690.2,0.37162]
[1727495003965,4.17911878,2690.4,2690.3,0.37161]
[1727495004260,1.4573871,2690.5,2690.0,6.4595]
[1727495004561,3.28336387,2690.6,2690.0,6.4595]
[1727495004562,1.34,2690.6,2690.5,0.37158]
[1727495004861,0.97105747,2690.7,2690.6,0.37157]
[1727495005061,0.97105747,2690.7,2690.6,5.89257]
[1727495005257,0.97105808,2690.9,2690.6,5.521]
[1727495005558,0.97105808,2691.0,2690.9,0.37152]
[1727495005768,1.4573871,2691.1,2691.0,0.37151]
[1727495005957,1.4573871,2691.2,2691.1,0.3715]
[1727495006261,0.18585357,2691.2,2691.1,1.4015]
[1727495006863,0.18585357,2691.2,2691.1,1.03]
[1727495007256,2.12921744,2691.2,2691.1,1.8055]
[1727495007459,1.64243679,2691.2,2691.1,5.5215]
[1727495007659,1.64245291,2691.2,2691.1,5.5215]
[1727495008062,1.45659934,2691.2,2691.1,5.5215]
[1727495008265,1.45659934,2691.2,2691.1,1.8055]
[1727495008461,1.45659934,2691.2,2691.1,5.5215]
[1727495008658,1.45659934,2691.2,2691.1,11.5215]
[1727495008864,1.45659934,2691.3,2691.2,0.37148]
[1727495009070,1.94336387,2691.6,2691.5,0.37144]
[1727495009071,1.45659934,2691.6,2691.5,0.37144]
[1727495009363,1.94336387,2691.8,2691.2,7.0018]
[1727495009364,1.45659934,2691.8,2691.6,0.37143]
[1727495009566,1.64241528,2691.8,2691.7,1.03]
[1727495009963,0.18581594,2691.8,2691.7,1.03]
[1727495010161,3.45721594,2691.8,2691.4,0.37145]
[1727495010358,1.64181323,2691.7,2691.5,1.40144]
[1727495010562,1.45598928,2691.7,2691.5,1.40144]
[1727495011364,1.45598928,2691.7,2691.2,0.3858]
[1727495011567,4.35598928,2691.6,2691.3,0.973]
[1727495011775,1.45598928,2691.6,2691.4,0.37145]
[1727495012072,1.45598928,2691.6,2691.3,1.34446]
[1727495012265,1.45598928,2691.6,2691.4,0.37145]
[1727495012467,1.45598928,2691.6,2691.5,0.973]
[1727495012767,1.82741928,2691.6,2691.5,0.973]
[1727495012972,2.79839717,2691.6,2691.5,0.973]
[1727495013265,5.69839717,2691.6,2691.5,0.973]
[1727495013665,8.90619798,2691.6,2691.2,0.75728]
[1727495013862,1.64177047,2691.5,2691.3,0.973]
[1727495014058,1.45593421,2691.5,2691.3,0.37147]
[1727495014263,1.45593421,2691.5,2691.4,0.973]
[1727495014667,1.6417709,2691.5,2691.4,0.973]
[1727495014868,0.18583669,2691.5,2691.4,0.973]
[1727495015072,1.64151407,2691.5,2691.4,0.973]
[1727495016181,1.45567738,2691.5,2691.4,0.973]
[1727495016877,1.64150914,2691.5,2691.2,0.75728]
[1727495017083,1.64150914,2691.5,2691.3,0.973]
[1727495018084,1.64150914,2691.5,2691.3,1.34447]
[1727495019079,1.45567738,2691.5,2691.3,1.34447]
[1727495019386,1.64151758,2691.5,2691.3,1.34447]
[1727495019878,1.64151758,2691.5,2691.0,0.3993]
[1727495019879,0.35247,2691.4,2691.0,0.3715]
[1727495020082,0.1858402,2691.5,2691.4,0.62053]
[1727495020083,4.58589579,2691.5,2691.4,0.62053]
[1727495020287,10.69377079,2691.5,2691.4,0.62053]
[1727495020483,11.06521079,2691.5,2691.4,0.62053]
[1727495020877,8.63602629,2691.5,2691.4,0.62053]
[1727495021086,8.26458629,2691.5,2691.4,0.60153]
[1727495021884,12.35122629,2691.5,2691.4,0.973]
[1727495022073,12.3459682,2691.5,2691.4,0.973]
[1727495022278,11.9745282,2691.5,2691.0,0.3715]
[1727495022478,8.04830392,2691.2,2691.1,1.3445]
[1727495022791,8.23416329,2691.2,2691.1,0.973]
[1727495023181,6.29365937,2691.2,2691.1,0.973]
[1727495023487,10.6850017,2691.2,2691.1,0.973]
[1727495024390,8.25164153,2691.2,2691.1,0.973]
[1727495025182,10.67727143,2691.2,2691.1,0.973]
[1727495025987,11.04875143,2691.2,2690.9,0.37152]
[1727495026180,3.86766084,2691.0,2690.7,0.37154]
[1727495026383,0.18585937,2690.9,2690.8,0.973]
[1727495027181,3.39365937,2690.9,2690.8,0.973]
[1727495028995,3.2078,2690.9,2690.8,0.973]
[1727495029888,3.2078,2690.9,2690.6,0.37156]
[1727495030093,4.66340211,2690.9,2690.7,0.973]
[1727495030285,4.5478,2690.8,2690.7,0.973]
[1727495030996,4.5478,2690.8,2690.4,0.8099]
[1727495030997,4.91934,2690.8,2690.4,1.18148]
[1727495031294,0.3905,2690.7,2690.4,0.8099]
[1727495031497,0.3905,2690.7,2690.5,0.973]
[1727495031498,1.34,2690.6,2690.5,0.973]
[1727495031684,1.34,2690.6,2690.0,0.74384]
[1727495031685,6.5596217,2690.6,2690.0,0.74384]
[1727495031887,3.2078,2690.3,2690.1,0.606]
[1727495032188,1.34,2690.2,2690.1,0.97764]
[1727495032388,1.7305,2690.2,2690.1,0.97764]
[1727495034295,0.3905,2690.2,2690.1,0.97764]
[1727495035200,0.3905,2690.2,2690.1,0.606]
[1727495036094,0.3905,2690.2,2690.1,0.97764]
[1727495036295,0.3905,2690.2,2690.1,0.606]
[1727495036597,0.3905,2690.2,2690.1,1.34464]
[1727495036794,0.3905,2690.2,2690.1,0.973]
[1727495037999,0.3905,2690.2,2690.0,0.3722]
[1727495038195,0.3905,2690.2,2690.1,0.973]
[1727495040097,0.3905,2690.2,2690.0,0.3722]
[1727495040298,0.3905,2690.2,2690.1,0.973]
[1727495040689,0.3905,2690.2,2690.1,1.3601]
[1727495041095,0.3905,2690.2,2690.1,0.973]
[1727495041592,0.3905,2690.2,2690.0,0.3722]
[1727495041796,0.3905,2690.2,2690.1,0.948]
[1727495043398,0.76212,2690.2,2690.1,0.948]
[1727495043601,5.56370211,2690.2,2689.8,4.45916302]
[1727495043898,5.56370211,2690.2,2689.9,0.948]
[1727495043899,0.37166,2690.0,2689.9,0.948]
[1727495044499,0.37166,2689.9,2689.8,4.45916302]
[1727495044695,5.45335022,2690.1,2689.9,0.57634]
[1727495044696,0.37165,2690.0,2689.9,0.57634]
[1727495044894,3.27165,2690.0,2689.9,0.57634]
[1727495045296,3.27165,2690.0,2689.9,0.948]
[1727495046402,2.9,2690.0,2689.9,0.948]
[1727495046903,3.27165,2690.0,2689.9,0.948]
[1727495047709,2.9,2690.0,2689.9,0.948]
[1727495047903,2.9,2690.0,2689.8,4.45916302]
[1727495048105,2.9,2690.0,2689.9,0.948]
[1727495048307,3.27165,2690.0,2689.9,0.948]
[1727495049409,6.98925,2690.0,2689.9,0.948]
[1727495049900,6.6176,2690.0,2689.9,0.948]
[1727495050305,6.98925,2690.0,2689.9,0.948]
[1727495053023,3.27165,2690.0,2689.9,0.948]
[1727495054206,1.71165,2690.0,2689.9,0.948]
[1727495054597,0.37165,2690.0,2689.9,0.948]
[1727495054797,1.71165,2690.0,2689.9,0.948]
[1727495056104,1.34,2690.0,2689.9,0.948]
[1727495056507,5.0576,2690.0,2689.5,0.7618]
[1727495056706,5.0576,2690.0,2689.6,0.1922]
[1727495056707,3.57947,2689.9,2689.6,0.1922]
[1727495056911,1.34,2689.7,2689.6,0.1922]
[1727495057108,1.34,2689.7,2689.6,0.5639]
[1727495057308,1.34,2689.7,2689.6,0.1922]
[1727495058006,1.34,2689.7,2689.5,2.08152]
[1727495060307,1.34,2689.7,2689.6,0.3717]
[1727495060804,1.34,2689.7,2689.5,2.08151]
[1727495061000,1.34,2689.7,2689.5,0.7618]
[1727495061199,1.34,2689.7,2689.5,1.7108]
[1727495062209,1.34,2689.7,2689.5,2.08252]
[1727495065019,0.6689,2689.8,2689.6,0.3717]
[1727495065216,1.34,2689.6,2689.5,2.08251]
[1727495069222,1.45525022,2690.0,2689.5,12.7692]
[1727495069424,1.9378041,2690.1,2690.0,0.37165]
[1727495069425,1.45525022,2690.1,2690.0,0.37165]
[1727495069617,1.9378041,2690.3,2690.2,0.37162]
[1727495069618,1.45525022,2690.3,2690.2,0.37162]
[1727495069920,2.79525022,2690.3,2690.2,1.32062]
[1727495070115,2.98117632,2690.3,2690.2,0.949]
[1727495070333,1.5259261,2690.3,2690.2,0.949]
[1727495071128,2.1237302,2690.3,2690.2,1.32062]
[1727495071321,2.1237302,2690.3,2690.2,0.949]
[1727495071322,3.4637302,2690.3,2690.2,0.949]
[1727495071627,1.5259261,2690.3,2690.2,1.32062]
[1727495071824,1.5259261,2690.3,2690.2,0.949]
[1727495072021,3.4637302,2690.3,2690.1,2.0056]
[1727495072221,3.2778041,2690.3,2690.2,0.7520739]
[1727495072531,1.71161,2690.3,2690.2,0.7520739]
[1727495073228,6.08908148,2690.3,2690.2,0.7520739]
[1727495073619,1.71161,2690.3,2690.2,0.7520739]
[1727495073826,3.66352439,2690.3,2690.2,0.7520739]
[1727495074020,3.66352738,2690.3,2690.2,0.7520739]
[1727495074225,6.09449965,2690.3,2690.2,0.7520739]
[1727495074634,3.66352738,2690.3,2690.2,0.7520739]
[1727495077731,3.66606739,2690.3,2690.2,0.7520739]
[1727495080333,6.57908472,2690.3,2690.2,0.7520739]
[1727495080527,4.89651733,2690.3,2690.1,0.56636]
[1727495080835,3.26965739,2690.2,2690.1,0.56636]
[1727495081333,9.67254775,2690.2,2690.1,0.56636]
[1727495081634,6.55429472,2690.2,2690.1,0.56636]
[1727495081827,9.6725408,2690.2,2690.1,0.56636]
[1727495082624,9.66715254,2690.2,2690.1,0.56636]
[1727495084027,9.66715254,2690.2,2689.8,2.33548]
[1727495084028,9.29553254,2690.2,2690.0,0.56635]
[1727495084229,3.28906913,2690.1,2690.0,0.56635]
[1727495084628,0.37166,2689.9,2689.8,1.9638]
[1727495084824,4.14668596,2689.9,2689.8,2.9018]
[1727495085229,9.30355509,2689.9,2689.8,1.3416]
[1727495085437,3.66072913,2689.9,2689.8,2.2796]
[1727495085638,6.57374646,2689.9,2689.8,0.938]
[1727495085929,7.46081733,2689.9,2689.6,0.938]
[1727495086132,1.34,2689.7,2689.6,0.938]
[1727495086432,1.71169,2689.7,2689.6,0.938]
[1727495086638,4.32325913,2689.7,2689.6,0.938]
[1727495086937,3.95156913,2689.7,2689.6,0.5663]
[1727495087340,4.32325913,2689.7,2689.6,0.5663]
[1727495087529,4.32408861,2689.7,2689.6,0.5663]
[1727495088028,4.32408861,2689.7,2689.5,1.3888]
[1727495088230,1.94989861,2689.6,2689.5,2.3268]
[1727495088625,2.32159861,2689.6,2689.5,2.3268]
[1727495088926,2.32159861,2689.6,2689.5,0.938]
[1727495089126,1.94989861,2689.6,2689.5,0.938]
[1727495089635,1.94989861,2689.6,2689.5,1.5843]
[1727495092340,2.13587971,2689.6,2689.5,1.5843]
[1727495095231,2.50757971,2689.6,2689.5,1.5843]
[1727495095630,2.50757971,2689.6,2689.5,0.938]
[1727495096224,3.28471733,2689.6,2689.5,0.938]
[1727495096431,8.53947334,2689.6,2689.5,0.938]
[1727495096831,8.53947334,2689.6,2689.5,1.30972]
[1727495096832,8.16777334,2689.6,2689.5,1.30972]
[1727495097034,5.04889704,2689.6,2689.5,0.938]
[1727495097434,2.13587971,2689.6,2689.5,0.938]
[1727495098035,2.50757971,2689.6,2689.5,0.938]
[1727495098237,5.42059704,2689.6,2689.5,0.938]
[1727495098435,3.47069843,2689.6,2689.5,0.938]
[1727495098738,5.42059704,2689.6,2689.5,0.938]
[1727495099541,5.42059704,2689.6,2689.5,1.30972]
[1727495099542,2.13587971,2689.6,2689.5,1.30972]
[1727495099736,2.13587971,2689.6,2689.5,0.938]
[1727495099933,2.13587971,2689.6,2689.5,1.30972]
[1727495100738,2.13587971,2689.6,2689.5,0.938]
[1727495100954,2.13485505,2689.6,2689.5,1.30972]
[1727495101937,2.13485505,2689.6,2689.5,11.02812]
[1727495102138,2.91301733,2689.8,2689.5,14.86300071]
[1727495102139,0.18594165,2689.7,2689.5,14.86300071]
[1727495102343,1.94728284,2689.6,2689.5,5.51632071]
[1727495102635,1.55880562,2689.8,2689.5,5.51632071]
[1727495102636,1.94728284,2689.7,2689.6,4.0893]
[1727495102840,1.94728284,2689.7,2689.6,0.3717]
[1727495103043,1.55880562,2689.8,2689.7,0.37169]
[1727495103243,1.34,2690.0,2689.9,0.37166]
[1727495103453,3.28717269,2690.0,2689.9,0.37166]
[1727495104044,1.94717269,2690.0,2689.9,0.37166]
[1727495104344,1.94717269,2690.0,2689.9,4.08926]
[1727495108242,1.94717269,2690.0,2689.9,5.42926]
[1727495108444,1.46010183,2690.3,2690.2,0.37162]
[1727495108644,1.94717269,2690.4,2690.2,5.83442]
[1727495108645,1.46010183,2690.4,2690.2,5.83442]
[1727495108849,1.46010183,2690.4,2690.3,4.79601]
[1727495109147,1.94717269,2690.5,2690.3,4.796]
[1727495109450,1.45965936,2690.4,2690.3,1.0792]
[1727495109847,1.45965936,2690.5,2690.4,0.37159]
[1727495110251,1.45965936,2690.6,2690.5,0.37158]
[1727495110555,1.45965936,2690.6,2690.5,3.57938]
[1727495111352,2.91301733,2690.9,2690.6,0.37157]
[1727495111649,0.6793,2690.9,2690.8,1.71154]
[1727495111849,0.6793,2690.9,2690.8,2.62654]
[1727495112347,4.62449733,2691.2,2690.9,0.37152]
[1727495112348,1.92016387,2691.0,2690.9,0.37152]
[1727495112541,1.92015206,2691.0,2690.9,0.37152]
[1727495112747,2.0437,2691.2,2690.9,0.37152]
[1727495112946,1.92009163,2691.1,2690.9,0.37152]
[1727495113147,1.92009163,2691.0,2690.9,0.37152]
[1727495113348,1.94268097,2691.0,2690.9,0.37152]
[1727495113546,1.94268097,2691.0,2690.9,4.08752]
[1727495113746,1.94268097,2691.0,2690.9,6.14512]
[1727495113950,1.94268097,2691.1,2691.0,0.37151]
[1727495114259,1.94268097,2691.1,2691.0,4.08751]
[1727495114454,2.64638097,2691.2,2691.1,0.3715]
[1727495114755,2.64638097,2691.2,2691.1,7.8388]
[1727495115254,4.34951733,2691.6,2691.3,0.37147]
[1727495115453,2.65060567,2691.5,2691.2,1.71148]
[1727495115648,1.94068902,2691.3,2691.2,0.37148]
[1727495115963,1.45540471,2691.3,2691.2,1.71148]
[1727495116152,1.45540532,2691.4,2691.2,8.7964409]
[1727495116458,1.10475,2691.5,2691.3,0.915]
[1727495116751,0.7333,2691.5,2691.4,0.11854]
[1727495116954,2.0733,2691.5,2691.1,3.2078]
[1727495117157,2.0733,2691.5,2691.0,0.915]
[1727495117158,1.34,2691.2,2691.0,0.915]
[1727495117451,2.86841482,2691.3,2691.0,0.915]
[1727495117452,4.37110829,2691.1,2691.0,0.915]
[1727495117646,0.37151,2691.0,2690.9,0.915]
[1727495117843,4.36111829,2691.0,2690.9,0.915]
[1727495118458,3.89939856,2691.0,2690.9,0.915]
[1727495119845,0.37154,2690.9,2690.4,3.57938]
[1727495120051,0.37154,2690.9,2690.6,0.37157]
[1727495120052,1.34,2690.7,2690.6,0.37157]
[1727495120356,1.34,2690.7,2690.5,1.28657]
[1727495120958,1.45458856,2690.9,2690.7,0.37155]
[1727495121154,2.18788856,2691.0,2690.9,0.37152]
[1727495121458,1.45458856,2691.2,2691.1,0.3715]
[1727495121656,0.7481,2691.4,2691.3,0.37147]
[1727495122463,0.7481,2691.4,2691.2,0.37147]
[1727495122963,0.7481,2691.4,2691.2,0.37148]
[1727495123352,0.7481,2691.4,2691.1,4.49429]
[1727495124260,0.7481,2691.4,2691.1,4.1228]
[1727495124448,0.7481,2691.4,2691.3,0.37147]
[1727495124653,0.7481,2691.4,2691.1,4.1228]
[1727495124961,0.7481,2691.4,2691.2,0.37147]
[1727495126360,2.20268856,2691.4,2691.1,0.915]
[1727495126559,2.20268856,2691.4,2691.2,0.37148]
[1727495126761,2.20268856,2691.4,2691.3,0.37147]
[1727495126963,2.20268856,2691.4,2691.1,0.915]
[1727495126964,2.20268856,2691.4,2691.2,0.37147]
[1727495127155,2.20268856,2691.4,2691.1,0.915]
[1727495127156,2.20268856,2691.4,2691.3,0.37147]
[1727495127357,0.7481,2691.4,2691.3,0.37147]
[1727495127654,0.7481,2691.4,2691.3,4.08747]
[1727495127850,0.7481,2691.4,2691.3,4.81657]
[1727495128263,2.16708856,2691.7,2691.6,0.37143]
[1727495128766,0.7125,2691.7,2691.6,0.37143]
[1727495128961,1.67993438,2691.7,2691.6,0.37143]
[1727495130763,0.96743438,2691.7,2691.6,4.08663]
[1727495130976,5.63973438,2691.8,2691.7,0.37141]
[1727495131163,2.43193438,2691.8,2691.7,1.28641]
[1727495131457,1.4645,2691.8,2691.7,1.28641]
[1727495131857,2.43193438,2691.8,2691.7,0.915]
[1727495132065,2.43193438,2691.8,2691.7,0.932]
[1727495132256,2.80333438,2691.8,2691.7,0.932]
[1727495133464,1.8359,2691.8,2691.7,0.932]
[1727495133665,0.37142,2691.7,2691.6,0.932]
[1727495133860,1.4645,2691.8,2691.4,3.2078]
[1727495134167,2.9,2691.7,2691.2,0.37148]
[1727495134369,0.37146,2691.4,2691.3,0.932]
[1727495134560,0.37146,2691.4,2691.1,3.27149]
[1727495134561,0.37146,2691.4,2691.0,3.8953]
[1727495134757,2.1871,2691.3,2691.1,1.30349]
[1727495136271,2.1871,2691.3,2691.2,0.37148]
[1727495137357,2.1871,2691.3,2691.2,1.30348]
[1727495141266,0.7091,2691.3,2691.2,1.30348]
[1727495141765,2.1425,2691.6,2691.4,0.37144]
[1727495142563,2.1425,2691.6,2691.3,0.37147]
[1727495142766,2.51393,2691.6,2691.3,0.37147]
[1727495144069,2.1425,2691.6,2691.3,0.37147]
[1727495144279,2.1425,2691.6,2691.3,1.71147]
[1727495144464,2.51393,2691.6,2691.3,1.71147]
[1727495145567,2.1425,2691.6,2691.3,1.71147]
[1727495145965,2.51393,2691.6,2691.3,1.71147]
[1727495147876,2.1425,2691.6,2691.4,0.37145]
[1727495150778,2.12313174,2691.5,2691.4,0.37145]
[1727495151779,2.12313174,2691.5,2691.3,1.71146]
[1727495151978,2.12313174,2691.5,2691.4,0.37146]
[1727495152371,0.18583792,2691.5,2691.3,1.34]
[1727495152781,0.18583792,2691.5,2691.4,0.37146]
[1727495153575,0.18583792,2691.5,2691.4,1.71146]
[1727495153783,2.1425,2691.6,2691.5,0.37144]
[1727495154084,2.1425,2691.6,2691.5,4.51124]
[1727495154281,0.6805,2691.6,2691.5,4.51124]
[1727495154486,0.6805,2691.6,2691.5,5.25904]
[1727495156376,2.7800073,2691.6,2691.5,12.96551188]
[1727495156583,0.86631622,2691.6,2691.5,12.96551188]
[1727495156885,2.62572825,2691.6,2691.5,12.96551188]
[1727495157181,2.81154447,2691.6,2691.5,5.25904]
[1727495157388,0.86631622,2691.6,2691.5,5.25904]
[1727495157586,3.11199003,2691.6,2691.5,5.25904]
[1727495157785,5.21226282,2691.6,2691.5,5.25904]
[1727495159389,0.86631622,2691.6,2691.5,5.25904]
[1727495160489,3.11199003,2691.6,2691.5,5.25904]
[1727495160682,5.21240677,2691.6,2691.5,4.1398]
[1727495160881,5.21240677,2691.6,2691.5,0.932]
[1727495161278,5.58383677,2691.6,2691.5,0.932]
[1727495162085,5.21240677,2691.6,2691.5,0.932]
[1727495162281,3.11199003,2691.6,2691.5,0.932]
[1727495162481,5.58383249,2691.6,2691.5,0.932]
[1727495163493,8.75065662,2691.6,2691.5,0.904]
[1727495163787,5.68685319,2691.6,2691.5,0.904]
[1727495164387,9.12274375,2691.6,2691.5,0.904]
[1727495164991,6.21680302,2691.6,2691.5,0.904]
[1727495165496,6.21680302,2691.6,2691.3,1.71146]
[1727495165697,5.02123313,2691.5,2691.4,0.904]
[1727495166398,3.2398455,2691.5,2691.4,0.904]
[1727495166591,5.15443005,2691.5,2691.4,0.904]
[1727495166892,3.10808438,2691.5,2691.4,0.904]
[1727495167095,5.15443005,2691.5,2691.4,0.904]
[1727495167390,8.53901883,2691.5,2691.4,1.27546]
[1727495168096,8.53901883,2691.5,2691.4,0.904]
[1727495168792,8.53901883,2691.5,2691.4,2.61546]
[1727495168995,5.14875464,2691.5,2691.4,2.61546]
[1727495170193,5.14875464,2691.5,2691.4,6.33066]
[1727495170502,5.14875464,2691.5,2691.4,17.37192765]
[1727495170503,4.53079577,2691.5,2691.4,17.37192765]
[1727495170691,2.43605872,2691.6,2691.5,0.37144]
[1727495170998,2.43605872,2691.7,2691.6,4.61838818]
[1727495171203,3.67964727,2692.0,2691.9,0.37139]
[1727495171494,3.67964727,2692.0,2691.9,4.91919]
[1727495171495,2.88941925,2692.0,2691.9,4.91919]
[1727495171695,0.94159309,2692.0,2691.9,4.91919]
[1727495172192,0.18579309,2692.0,2691.9,8.63359]
[1727495172493,1.94782616,2692.1,2692.0,0.37137]
[1727495172494,2.13360873,2692.1,2692.0,0.37137]
[1727495172691,2.13360873,2692.1,2692.0,1.27537]
[1727495172996,2.13360873,2692.1,2692.0,0.904]
[1727495173391,0.18578257,2692.1,2692.0,0.904]
[1727495173992,0.18578257,2692.1,2692.0,1.27537]
[1727495174294,2.13223026,2692.1,2692.0,1.27537]
[1727495175498,0.18578257,2692.1,2692.0,1.27537]
[1727495175691,0.18578257,2692.1,2692.0,4.98977]
[1727495175992,1.45910362,2692.1,2692.0,5.62977]
[1727495176399,0.97243237,2692.1,2692.0,5.62977]
[1727495178500,0.18577273,2692.1,2692.0,5.62977]
[1727495178695,3.1905827,2692.2,2692.1,0.37136]
[1727495178994,3.37635654,2692.2,2692.1,2.47666]
[1727495179194,5.28110319,2692.2,2692.1,2.47666]
[1727495181393,5.28038104,2692.2,2692.1,2.1053]
[1727495181602,5.28038104,2692.2,2692.1,2.47666]
[1727495183602,4.52458104,2692.2,2692.1,6.19106]
[1727495183805,0.18577573,2692.2,2692.1,6.19106]
[1727495185499,2.12812688,2692.2,2692.1,6.19106]
[1727495185894,1.94235115,2692.2,2692.1,6.19106]
[1727495186094,2.128119,2692.2,2692.1,6.19106]
[1727495186404,1.94235115,2692.2,2692.1,6.19106]
[1727495186596,0.97108806,2692.3,2692.1,6.19106]
[1727495186803,0.97108806,2692.3,2692.2,3.57915]
[1727495187201,0.97108806,2692.3,2692.2,3.2078]
[1727495188501,2.01374661,2692.3,2692.2,0.903]
[1727495188802,7.4891827,2692.3,2692.1,0.903]
[1727495188996,0.18578452,2692.2,2692.1,0.53162]
[1727495189191,9.3569827,2692.2,2692.1,0.53162]
[1727495189397,4.27153452,2692.2,2692.1,0.53162]
[1727495189606,8.60898775,2692.2,2691.8,4.50990388]
[1727495189798,1.34,2692.3,2691.9,0.903]
[1727495189799,1.45684626,2692.0,2691.9,0.903]
[1727495190206,2.23534626,2692.0,2691.9,0.903]
[1727495190512,2.42114771,2692.0,2691.9,2.243]
[1727495190696,2.23534626,2692.0,2691.9,2.243]
[1727495190895,2.42114886,2692.0,2691.9,2.243]
[1727495192097,3.15414886,2692.0,2691.9,2.243]
[1727495192299,1.6973026,2692.0,2691.9,2.243]
[1727495192799,3.63976428,2692.0,2691.9,2.243]
[1727495193400,1.6973026,2692.0,2691.9,2.243]
[1727495193605,3.9462827,2692.0,2691.9,2.243]
[1727495193795,6.02749186,2692.0,2691.9,2.243]
[1727495194698,1.6973026,2692.0,2691.9,2.61439]
[1727495195100,3.64016881,2692.0,2691.9,2.61439]
[1727495195800,1.6973026,2692.0,2691.9,2.61439]
[1727495196002,3.64025276,2692.0,2691.9,2.61439]
[1727495197004,1.6973026,2692.0,2691.9,2.61439]
[1727495198207,1.6973026,2692.0,2691.9,2.243]
[1727495198702,3.59323021,2692.0,2691.9,2.243]
[1727495198905,1.6973026,2692.0,2691.9,2.243]
[1727495199098,6.02803739,2692.0,2691.9,2.243]
[1727495201801,1.6973026,2692.0,2691.9,2.243]
[1727495202205,3.15513126,2692.0,2691.9,1.34]
[1727495202399,1.6973026,2692.0,2691.9,2.25]
[1727495202605,3.6411002,2692.0,2691.9,2.25]
[1727495205109,1.69730219,2692.0,2691.9,2.62139]
[1727495205513,3.64109979,2692.0,2691.9,2.62139]
[1727495205713,3.64109979,2692.0,2691.9,2.25]
[1727495206309,1.69730219,2692.0,2691.9,2.62139]
[1727495206610,3.64109979,2692.0,2691.9,2.62139]
[1727495207111,1.69730219,2692.0,2691.9,2.62139]
[1727495207408,1.69730219,2692.0,2691.9,2.25]
[1727495207805,1.69730219,2692.0,2691.9,2.62139]
[1727495208500,3.64109979,2692.0,2691.9,2.62139]
[1727495208705,3.64109442,2692.0,2691.9,2.62139]
[1727495209308,3.4552976,2692.0,2691.9,2.62139]
[1727495209707,3.4552976,2692.0,2691.9,2.25]
[1727495210106,3.64109416,2692.0,2691.9,2.25]
[1727495211113,3.64109559,2692.0,2691.9,2.25]
[1727495212008,3.64109559,2692.0,2691.9,2.62139]
[1727495212410,3.64109559,2692.0,2691.9,2.25]
[1727495213520,1.69729799,2692.0,2691.9,2.25]
[1727495214219,2.1319503,2692.0,2691.9,2.62139]
[1727495214412,2.1319503,2692.0,2691.9,3.39379]
[1727495214715,1.94615231,2692.0,2691.9,3.39379]
[1727495214915,2.4347827,2692.2,2692.0,0.37137]
[1727495215111,2.4347827,2692.2,2692.1,1.34]
[1727495215720,4.33371041,2692.2,2692.1,1.34]
[1727495216121,2.08471666,2692.2,2692.1,1.34]
[1727495216324,4.82212612,2692.2,2692.1,1.34]
[1727495216840,4.82212612,2692.2,2692.1,1.71136]
[1727495217524,4.82212612,2692.2,2692.1,1.34]
[1727495218231,4.82212612,2692.2,2692.1,1.71136]
[1727495219122,4.82212612,2692.2,2692.1,1.34]
[1727495219327,2.92319841,2692.2,2692.1,1.34]
[1727495219729,5.12390653,2692.2,2692.1,1.34]